bitfinex/quotes_SOLUSD_20220211
["timestamp","ask_amount","ask_price","bid_price","bid_amount"]
[1644597165658,51.3187,106.02,105.95,2.38366791]
[1644597165859,51.3187,106.02,105.95,2.40766791]
[1644597166257,4.716,106.02,105.96,2.38366791]
[1644597166458,35.93195862,106.03,105.96,2.38366791]
[1644597167660,36.18195862,106.03,105.96,2.38366791]
[1644597168363,36.18195862,106.03,105.96,2.40766791]
[1644597168564,4.716,106.02,105.96,2.40766791]
[1644597168761,4.716,106.02,105.94,2.40766791]
[1644597169366,74.0,106.01,105.92,8.43269976]
[1644597169566,49.11363225,106.0,105.92,4.716]
[1644597169767,63.0,105.99,105.87,1.33303185]
[1644597169974,193.0814,106.05,105.86,1.33303185]
[1644597169975,65.58060981,105.98,105.86,1.33303185]
[1644597170175,60.86060981,105.98,105.86,1.33303185]
[1644597170375,40.88718866,105.96,105.85,1.33303185]
[1644597170576,4.721,105.95,105.85,1.33303185]
[1644597170776,41.35993218,105.94,105.85,1.33303185]
[1644597170977,52.26593218,105.94,105.85,1.33303185]
[1644597171181,52.51593218,105.94,105.85,1.33303185]
[1644597171578,52.51593218,105.94,105.84,6.05103185]
[1644597171879,44.3353038,105.92,105.84,16.46438413]
[1644597172279,4.722,105.96,105.85,24.312]
[1644597172481,4.722,105.98,105.85,25.64503185]
[1644597172679,4.722,105.98,105.87,1.33303185]
[1644597173080,4.72,105.99,105.88,21.13135228]
[1644597173283,35.2962952,105.98,105.88,21.38135228]
[1644597173482,38.015076,105.96,105.88,21.38135228]
[1644597173682,38.015076,105.96,105.88,15.13135228]
[1644597173882,47.10260645,105.94,105.87,49.37663185]
[1644597174082,47.10260645,105.94,105.86,13.59]
[1644597174483,0.25,105.96,105.86,13.59]
[1644597174484,42.11119346,105.92,105.86,13.59]
[1644597176298,42.11119346,105.92,105.85,16.46438413]
[1644597176693,42.11119346,105.92,105.85,1.33303185]
[1644597177694,42.36119346,105.92,105.85,1.33303185]
[1644597178693,42.36119346,105.92,105.86,1.33303185]
[1644597179098,42.36119346,105.92,105.85,1.33303185]
[1644597179294,45.56810645,105.9,105.85,1.33303185]
[1644597182799,37.03506554,105.88,105.85,1.33303185]
[1644597182998,42.46586549,105.86,105.84,1.33303185]
[1644597183200,42.46586549,105.86,105.8,15.7074796]
[1644597183201,42.71586549,105.86,105.83,1.33303185]
[1644597183602,53.53986549,105.86,105.83,1.33303185]
[1644597184007,53.53986549,105.86,105.82,1.33303185]
[1644597185305,53.53986549,105.86,105.81,1.33303185]
[1644597185506,4.724,105.85,105.81,1.33303185]
[1644597185705,47.17694751,105.84,105.81,1.33303185]
[1644597185907,6.06439994,105.83,105.81,1.33303185]
[1644597186106,47.17694751,105.84,105.83,1.79835717]
[1644597186909,47.17694751,105.84,105.81,1.33303185]
[1644597187114,47.42694751,105.84,105.81,1.33303185]
[1644597187413,47.42694751,105.84,105.79,0.024]
[1644597187414,35.57020536,105.82,105.79,1.35703185]
[1644597187708,43.13720536,105.82,105.78,1.33303185]
[1644597188908,43.13720536,105.82,105.77,1.55563885]
[1644597189110,43.75735419,105.8,105.77,1.55563885]
[1644597189317,43.75735419,105.8,105.77,0.222607]
[1644597189709,4.726,105.79,105.77,0.222607]
[1644597189909,44.11934538,105.78,105.75,4.749]
[1644597190109,44.11934538,105.78,105.75,4.725]
[1644597192811,44.11934538,105.78,105.74,1.33303185]
[1644597193014,44.11934538,105.78,105.72,1.35703185]
[1644597193212,44.11934538,105.78,105.72,1.33303185]
[1644597193613,44.36934538,105.78,105.72,1.33303185]
[1644597194221,0.25,105.78,105.73,1.33303185]
[1644597194416,0.25,105.78,105.73,7.33303185]
[1644597194620,4.728,105.81,105.74,1.33303185]
[1644597194918,4.728,105.81,105.73,7.35703185]
[1644597195115,4.728,105.81,105.74,1.33303185]
[1644597195414,43.28525156,105.8,105.74,1.35703185]
[1644597195618,48.15965463,105.78,105.74,1.35703185]
[1644597195815,48.15965463,105.78,105.74,1.33303185]
[1644597196018,48.15965463,105.78,105.73,1.33303185]
[1644597196217,52.88765463,105.78,105.72,1.35703185]
[1644597196416,52.88765463,105.78,105.72,1.33303185]
[1644597197017,52.88765463,105.78,105.71,0.024]
[1644597198219,53.13765463,105.78,105.69,1.35703185]
[1644597198418,69.11132254,105.78,105.7,0.024]
[1644597198818,66.72765463,105.78,105.68,1.35703185]
[1644597199019,53.13765463,105.78,105.69,1.33303185]
[1644597199219,53.13765463,105.78,105.7,1.35703185]
[1644597199422,53.13765463,105.78,105.7,3.74069976]
[1644597199619,48.40965463,105.78,105.71,1.33303185]
[1644597199820,48.40965463,105.78,105.71,1.35703185]
[1644597200022,48.15965463,105.78,105.71,2.40766791]
[1644597200222,48.15965463,105.78,105.71,2.65766791]
[1644597200420,48.15965463,105.78,105.71,3.99069976]
[1644597200819,48.15965463,105.78,105.72,1.33303185]
[1644597201322,4.728,105.84,105.73,15.97366791]
[1644597201522,4.727,105.87,105.73,28.03369976]
[1644597201725,4.727,105.87,105.75,1.33303185]
[1644597201924,4.727,105.87,105.76,4.749]
[1644597202121,38.61100942,105.86,105.76,0.024]
[1644597202322,40.52839974,105.84,105.76,0.024]
[1644597202920,40.52839974,105.84,105.77,2.38366791]
[1644597203123,40.52839974,105.84,105.77,0.024]
[1644597203322,4.725,105.83,105.77,0.024]
[1644597203524,37.61365474,105.82,105.75,0.024]
[1644597203924,41.69984625,105.8,105.75,0.024]
[1644597204123,41.69984625,105.8,105.73,1.35703185]
[1644597204327,37.34682407,105.78,105.73,0.024]
[1644597204528,37.34682407,105.78,105.74,0.024]
[1644597204723,37.34682407,105.78,105.72,6.05903185]
[1644597204724,4.728,105.77,105.72,4.726]
[1644597204931,47.83554362,105.76,105.72,4.726]
[1644597205324,40.00571911,105.74,105.72,4.726]
[1644597205524,40.00571911,105.74,105.7,0.024]
[1644597205727,39.11788519,105.72,105.69,1.33303185]
[1644597206327,20.24284659,105.72,105.7,6.06439994]
[1644597206825,20.24284659,105.72,105.67,1.35703185]
[1644597207027,20.24284659,105.72,105.67,1.33303185]
[1644597207625,20.24284659,105.72,105.68,1.33303185]
[1644597209328,29.6642,105.77,105.68,1.33303185]
[1644597209531,29.6642,105.77,105.69,0.024]
[1644597209728,29.9142,105.77,105.69,1.35703185]
[1644597210330,39.5694374,105.76,105.69,1.35703185]
[1644597210530,4.729,105.75,105.69,1.35703185]
[1644597210730,0.25,105.77,105.69,3.99069976]
[1644597210931,0.25,105.77,105.7,1.33303185]
[1644597211131,0.25,105.77,105.7,1.35703185]
[1644597211337,0.25,105.77,105.71,2.38366791]
[1644597211537,0.25,105.77,105.67,42.92432779]
[1644597211538,117.0,105.76,105.63,4.01566354]
[1644597211739,204.51,105.75,105.62,2.82760917]
[1644597211937,4.731,105.74,105.58,2.66761987]
[1644597212141,4.731,105.74,105.59,0.024]
[1644597212142,183.51,105.73,105.59,0.024]
[1644597212339,4.732,105.72,105.6,0.024]
[1644597212638,50.40967991,105.71,105.6,0.024]
[1644597212838,4.732,105.7,105.57,40.74414861]
[1644597213038,47.81404447,105.69,105.58,4.757]
[1644597213239,43.81130516,105.67,105.59,39.07852517]
[1644597213446,4.733,105.66,105.6,0.024]
[1644597214040,13.59,105.69,105.6,0.024]
[1644597214239,4.733,105.7,105.6,6.024]
[1644597214440,18.322,105.72,105.6,6.0]
[1644597214742,13.59,105.72,105.6,6.0]
[1644597214942,49.43681586,105.71,105.61,48.42444429]
[1644597215340,44.70481586,105.71,105.61,48.67444429]
[1644597216161,44.95481586,105.71,105.61,48.67444429]
[1644597216361,44.95481586,105.71,105.61,48.42444429]
[1644597216560,46.23680151,105.69,105.61,48.42444429]
[1644597216760,4.732,105.68,105.61,48.42444429]
[1644597217361,45.13551685,105.67,105.61,48.42444429]
[1644597217763,4.732,105.7,105.61,48.42444429]
[1644597217962,4.732,105.71,105.61,48.42444429]
[1644597218761,42.93167967,105.71,105.61,48.42444429]
[1644597218962,42.93167967,105.71,105.61,47.92444429]
[1644597219362,54.30167967,105.71,105.61,47.92444429]
[1644597219762,54.55167967,105.71,105.61,47.92444429]
[1644597220265,56.93534758,105.71,105.61,47.92444429]
[1644597223467,56.93534758,105.71,105.57,29.1778]
[1644597223767,56.93534758,105.71,105.58,0.024]
[1644597224469,56.93534758,105.71,105.58,45.31490627]
[1644597224667,56.93534758,105.71,105.59,0.024]
[1644597226474,54.30167967,105.71,105.59,0.024]
[1644597226673,54.30167967,105.71,105.6,40.94770893]
[1644597226872,42.93167967,105.71,105.6,45.67970893]
[1644597227067,42.93167967,105.71,105.62,37.8407135]
[1644597227467,42.93167967,105.71,105.62,40.24838141]
[1644597227669,42.93167967,105.71,105.62,37.8647135]
[1644597229569,42.93167967,105.71,105.62,40.24838141]
[1644597230270,43.18167967,105.71,105.62,40.24838141]
[1644597231073,4.732,105.71,105.62,40.24838141]
[1644597231274,4.732,105.71,105.62,40.49838141]
[1644597231472,4.731,105.72,105.62,40.49838141]
[1644597231873,4.731,105.72,105.62,40.24838141]
[1644597232274,44.4464604,105.71,105.62,40.24838141]
[1644597232472,4.731,105.7,105.62,40.24838141]
[1644597232672,44.4464604,105.71,105.62,40.24838141]
[1644597232873,0.25,105.7,105.62,40.49838141]
[1644597233074,44.4464604,105.71,105.62,40.49838141]
[1644597233273,44.6964604,105.71,105.62,40.49838141]
[1644597233976,0.25,105.71,105.62,40.49838141]
[1644597234174,4.731,105.72,105.62,40.49838141]
[1644597235375,47.54566554,105.71,105.62,40.24838141]
[1644597235577,37.38201457,105.69,105.62,37.8647135]
[1644597235773,43.59766364,105.67,105.62,37.8647135]
[1644597235973,43.59766364,105.67,105.62,37.8407135]
[1644597236177,7.983,105.67,105.62,37.8407135]
[1644597237482,38.33846486,105.69,105.64,36.88543584]
[1644597237678,0.25,105.69,105.64,36.88543584]
[1644597238176,29.6063,105.71,105.64,36.88543584]
[1644597238380,24.8743,105.71,105.64,36.90943584]
[1644597238574,35.87706901,105.7,105.64,36.90943584]
[1644597238783,4.731,105.69,105.64,36.88543584]
[1644597238978,4.731,105.72,105.64,36.90943584]
[1644597239181,4.731,105.72,105.64,37.13543584]
[1644597239478,4.731,105.72,105.64,36.90943584]
[1644597239880,48.4177637,105.71,105.64,36.90943584]
[1644597240079,48.4177637,105.71,105.65,0.024]
[1644597240279,11.37,105.73,105.64,36.90943584]
[1644597240482,4.731,105.72,105.65,0.024]
[1644597240781,4.731,105.72,105.64,36.90943584]
[1644597241182,38.80593981,105.71,105.64,36.90943584]
[1644597241385,4.731,105.7,105.64,36.90943584]
[1644597241583,34.67707492,105.69,105.64,36.88543584]
[1644597241882,34.67707492,105.69,105.64,0.024]
[1644597242082,34.67707492,105.69,105.62,24.7454]
[1644597242284,4.732,105.68,105.62,24.7454]
[1644597242483,4.732,105.68,105.61,22.977]
[1644597242684,37.21183008,105.67,105.61,22.977]
[1644597242984,37.21183008,105.67,105.61,0.024]
[1644597243183,4.733,105.66,105.58,0.024]
[1644597243586,4.733,105.66,105.64,0.56238]
[1644597243785,47.11361139,105.65,105.64,0.56238]
[1644597245992,47.11361139,105.65,105.61,0.024]
[1644597246193,47.11361139,105.65,105.59,0.024]
[1644597246394,47.11361139,105.65,105.58,2.40766791]
[1644597246894,47.11361139,105.65,105.58,40.16447796]
[1644597247595,4.734,105.64,105.58,40.16447796]
[1644597247893,4.734,105.64,105.58,0.024]
[1644597248095,4.734,105.64,105.56,47.1818]
[1644597248293,4.734,105.64,105.56,0.024]
[1644597248792,41.31155364,105.63,105.56,44.9673628]
[1644597248993,41.31155364,105.63,105.56,44.9433628]
[1644597249196,41.31155364,105.63,105.56,44.9673628]
[1644597251922,39.06680426,105.61,105.56,44.9673628]
[1644597252120,39.06680426,105.61,105.56,44.9433628]
[1644597252320,39.31680426,105.61,105.56,2.38366791]
[1644597252521,39.06680426,105.61,105.54,0.024]
[1644597252720,39.06680426,105.61,105.54,2.38366791]
[1644597252923,39.06680426,105.61,105.54,2.40766791]
[1644597253320,39.06680426,105.61,105.54,0.024]
[1644597253523,4.735,105.6,105.52,0.024]
[1644597253722,4.985,105.6,105.49,52.95718778]
[1644597253923,16.355,105.6,105.5,0.024]
[1644597254425,40.74428569,105.59,105.51,0.024]
[1644597254623,39.07957318,105.57,105.48,35.08370079]
[1644597254831,42.86753298,105.55,105.49,0.024]
[1644597255022,4.738,105.54,105.49,0.024]
[1644597255225,42.30817575,105.53,105.43,3.14168491]
[1644597255427,14.0,105.51,105.4,4.01566354]
[1644597255626,9.87,105.41,105.35,4.01566354]
[1644597255827,9.87,105.41,105.34,237.83974543]
[1644597256025,9.87,105.41,105.29,46.3493]
[1644597256026,4.744,105.4,105.29,46.3493]
[1644597256226,4.744,105.4,105.3,3.71609]
[1644597256427,11.37,105.39,105.31,42.86816689]
[1644597257033,9.87,105.41,105.31,42.86816689]
[1644597257329,21.24,105.41,105.31,42.86816689]
[1644597257729,21.49,105.41,105.31,42.86816689]
[1644597258327,10.12,105.41,105.31,42.86816689]
[1644597258727,21.49,105.41,105.31,42.86816689]
[1644597259227,10.12,105.41,105.31,42.86816689]
[1644597259633,10.12,105.41,105.33,43.82616309]
[1644597259830,10.12,105.41,105.33,44.07616309]
[1644597261532,0.25,105.41,105.33,44.07616309]
[1644597261730,4.745,105.43,105.33,44.07616309]
[1644597263231,16.114,105.46,105.34,6.0]
[1644597263436,4.743,105.48,105.35,34.32988577]
[1644597263931,11.37,105.49,105.37,42.05031843]
[1644597264135,4.742,105.48,105.37,42.05031843]
[1644597264533,16.112,105.48,105.37,42.05031843]
[1644597265438,35.23942055,105.48,105.29,11.37]
[1644597265735,142.08,105.47,105.28,98.6928]
[1644597265933,16.114,105.46,105.28,101.07646791]
[1644597266135,35.24142055,105.46,105.28,122.0142]
[1644597266336,35.24142055,105.46,105.32,43.10609067]
[1644597266934,2.38366791,105.45,105.32,43.10609067]
[1644597267135,16.114,105.44,105.32,43.10609067]
[1644597267536,2.38366791,105.43,105.32,43.10609067]
[1644597267736,16.114,105.42,105.32,43.10609067]
[1644597270140,18.49766791,105.42,105.32,43.10609067]
[1644597270338,36.07296555,105.42,105.32,43.10609067]
[1644597270839,33.68929764,105.42,105.32,43.10609067]
[1644597271039,16.114,105.42,105.32,43.10609067]
[1644597273141,16.114,105.42,105.32,43.35609067]
[1644597273541,11.37,105.42,105.32,43.35609067]
[1644597274145,16.115,105.44,105.32,43.35609067]
[1644597274343,11.37,105.44,105.32,43.35609067]
[1644597274542,4.744,105.43,105.32,43.35609067]
[1644597274741,16.114,105.43,105.32,43.10609067]
[1644597274943,11.37,105.43,105.32,43.10609067]
[1644597275144,4.744,105.42,105.32,43.10609067]
[1644597275542,4.994,105.42,105.32,43.10609067]
[1644597275744,16.364,105.42,105.32,43.10609067]
[1644597277443,11.62,105.42,105.32,43.10609067]
[1644597277645,4.745,105.41,105.32,43.10609067]
[1644597277845,11.37,105.4,105.32,43.10609067]
[1644597278043,4.745,105.39,105.32,43.10609067]
[1644597278243,16.115,105.39,105.29,22.7112]
[1644597278443,11.37,105.39,105.29,22.7112]
[1644597278644,4.746,105.38,105.29,22.7112]
[1644597278844,11.37,105.37,105.29,22.7112]
[1644597279044,11.37,105.37,105.27,48.0324]
[1644597279249,4.747,105.36,105.28,38.53989846]
[1644597280652,11.37,105.38,105.28,38.53989846]
[1644597280950,4.746,105.37,105.28,38.53989846]
[1644597281246,16.116,105.39,105.28,40.92356637]
[1644597281445,11.37,105.39,105.28,40.92356637]
[1644597282045,29.0944,105.4,105.28,40.92356637]
[1644597282246,23.3645,105.41,105.29,6.0]
[1644597282448,23.3645,105.41,105.3,37.62434732]
[1644597282648,23.3645,105.41,105.3,40.00801523]
[1644597283050,23.3645,105.41,105.3,37.62434732]
[1644597283448,16.115,105.4,105.27,48.0324]
[1644597283671,30.82828702,105.4,105.24,14.5202]
[1644597283849,23.7068,105.39,105.24,63.101]
[1644597284048,16.117,105.38,105.25,2.68204071]
[1644597284448,16.117,105.38,105.26,43.71949578]
[1644597285254,16.367,105.38,105.27,2.69061083]
[1644597285454,16.367,105.38,105.28,35.08652565]
[1644597286257,16.117,105.38,105.28,35.08652565]
[1644597288061,23.7068,105.39,105.28,35.08652565]
[1644597288262,4.746,105.38,105.28,35.08652565]
[1644597288461,4.746,105.38,105.26,24.8156]
[1644597288662,11.37,105.37,105.24,24.7032]
[1644597288860,4.748,105.36,105.24,24.7032]
[1644597289060,11.37,105.35,105.22,24.8156]
[1644597289264,4.749,105.34,105.22,24.8156]
[1644597289460,11.37,105.33,105.22,60.64678479]
[1644597289661,4.749,105.32,105.22,36.33118479]
[1644597290062,16.119,105.34,105.22,36.33118479]
[1644597290663,18.50266791,105.34,105.22,36.33118479]
[1644597291282,16.119,105.34,105.22,36.33118479]
[1644597294682,16.369,105.34,105.22,36.33118479]
[1644597295683,16.369,105.34,105.22,36.58118479]
[1644597295886,16.369,105.34,105.23,2.68813342]
[1644597296087,16.369,105.34,105.24,40.61559671]
[1644597299191,16.119,105.34,105.25,6.0]
[1644597299396,4.749,105.34,105.25,6.0]
[1644597299595,4.749,105.34,105.26,45.31555962]
[1644597299797,27.8748,105.35,105.26,45.31555962]
[1644597299995,4.748,105.35,105.26,45.31555962]
[1644597300195,4.748,105.37,105.26,45.31555962]
[1644597300898,11.37,105.36,105.26,45.31555962]
[1644597301097,4.747,105.35,105.26,45.31555962]
[1644597301299,4.747,105.36,105.26,45.31555962]
[1644597301498,4.747,105.37,105.26,45.31555962]
[1644597301897,4.747,105.37,105.26,44.81555962]
[1644597302098,11.37,105.39,105.26,44.81555962]
[1644597302300,4.747,105.4,105.27,19.75366791]
[1644597302498,34.1837,105.42,105.27,19.75366791]
[1644597302499,4.746,105.41,105.28,42.06186101]
[1644597302697,4.746,105.41,105.3,35.60047305]
[1644597303305,4.746,105.41,105.32,48.69125383]
[1644597303506,4.745,105.43,105.32,48.69125383]
[1644597303716,4.744,105.45,105.34,43.25458135]
[1644597303908,8.45041,105.45,105.34,43.25458135]
[1644597305603,2.38366791,105.44,105.34,43.25458135]
[1644597305802,3.70641,105.43,105.31,11.37]
[1644597306004,8.45041,105.43,105.3,34.5228]
[1644597306204,8.70041,105.43,105.3,34.5228]
[1644597306407,20.07041,105.43,105.3,34.5228]
[1644597306605,44.03411,105.43,105.3,34.5228]
[1644597306806,2.38366791,105.42,105.31,35.71253729]
[1644597307005,4.745,105.41,105.31,35.71253729]
[1644597308909,4.745,105.41,105.28,46.2028]
[1644597308910,13.75366791,105.4,105.23,15.38566354]
[1644597309107,4.747,105.39,105.23,11.37]
[1644597309306,36.1758,105.38,105.24,24.7794]
[1644597309505,4.747,105.37,105.24,24.7794]
[1644597309706,16.117,105.37,105.25,44.22282962]
[1644597313512,16.367,105.37,105.25,44.22282962]
[1644597313721,16.117,105.37,105.25,44.22282962]
[1644597313925,4.747,105.37,105.25,57.97649753]
[1644597314117,24.8058,105.38,105.25,58.22649753]
[1644597314319,4.747,105.39,105.26,19.52771758]
[1644597314516,4.747,105.39,105.27,36.67710262]
[1644597314718,4.747,105.39,105.27,50.68077053]
[1644597314916,4.747,105.39,105.27,48.29710262]
[1644597316117,4.747,105.39,105.29,47.34986899]
[1644597316320,4.746,105.42,105.29,58.96986899]
[1644597316520,4.746,105.4,105.29,58.96986899]
[1644597316717,4.746,105.41,105.29,58.96986899]
[1644597316918,8.45241,105.41,105.29,58.96986899]
[1644597317117,3.70641,105.41,105.29,58.96986899]
[1644597318034,3.70641,105.41,105.3,19.51088801]
[1644597318234,4.745,105.4,105.31,46.16493638]
[1644597318533,3.70641,105.41,105.31,46.16493638]
[1644597318735,3.70641,105.41,105.31,46.41493638]
[1644597319138,4.745,105.42,105.31,46.41493638]
[1644597319336,22.6828,105.43,105.31,46.41493638]
[1644597319536,4.745,105.42,105.33,47.19980282]
[1644597319739,4.744,105.45,105.33,47.44980282]
[1644597320337,4.744,105.45,105.33,58.81980282]
[1644597320740,4.744,105.46,105.33,58.81980282]
[1644597322139,4.994,105.46,105.33,58.56980282]
[1644597322337,18.74766791,105.46,105.33,58.56980282]
[1644597322537,47.50474706,105.46,105.33,47.19980282]
[1644597324840,45.12107915,105.46,105.33,47.19980282]
[1644597325040,31.08091986,105.46,105.33,47.19980282]
[1644597325244,16.114,105.46,105.33,47.19980282]
[1644597325643,16.114,105.46,105.33,47.44980282]
[1644597326042,16.114,105.46,105.33,58.81980282]
[1644597326244,16.364,105.46,105.33,58.81980282]
[1644597326443,16.114,105.46,105.33,58.81980282]
[1644597326844,11.37,105.46,105.33,58.81980282]
[1644597327047,22.9432,105.47,105.33,58.56980282]
[1644597327244,4.743,105.46,105.33,58.56980282]
[1644597328052,2.38366791,105.45,105.33,47.19980282]
[1644597328253,4.744,105.44,105.33,47.19980282]
[1644597329955,4.994,105.44,105.33,47.19980282]
[1644597330957,0.25,105.44,105.33,47.19980282]
[1644597331157,4.744,105.46,105.33,58.81980282]
[1644597331358,27.6872,105.47,105.35,38.62281701]
[1644597331559,22.9432,105.47,105.37,42.03213337]
[1644597331757,4.742,105.46,105.37,42.03213337]
[1644597331960,22.9432,105.47,105.37,42.03213337]
[1644597332166,4.742,105.46,105.37,42.03213337]
[1644597332759,4.992,105.46,105.37,42.03213337]
[1644597333359,0.25,105.46,105.37,53.40213337]
[1644597334976,75.83658196,105.49,105.37,51.63613337]
[1644597335173,78.22024987,105.49,105.37,51.63613337]
[1644597335374,93.18716973,105.49,105.37,42.03213337]
[1644597335573,1.30658196,105.48,105.37,42.03213337]
[1644597335773,17.41858196,105.47,105.37,42.03213337]
[1644597335974,23.84418644,105.47,105.37,42.03213337]
[1644597336201,121.43224987,105.46,105.37,42.03213337]
[1644597336574,2.38366791,105.45,105.37,42.03213337]
[1644597336974,117.742,105.46,105.37,42.03213337]
[1644597337174,4.743,105.47,105.37,42.03213337]
[1644597338174,7.12666791,105.47,105.37,42.03213337]
[1644597338574,7.37666791,105.47,105.37,42.03213337]
[1644597338776,8.68324987,105.47,105.37,42.03213337]
[1644597338979,7.37666791,105.47,105.37,42.03213337]
[1644597339578,4.993,105.47,105.37,42.03213337]
[1644597341282,4.993,105.47,105.37,41.53213337]
[1644597341582,0.25,105.47,105.37,41.53213337]
[1644597341782,1.30658196,105.48,105.37,53.15213337]
[1644597341982,74.53,105.49,105.37,53.15213337]
[1644597341983,4.742,105.47,105.37,52.90213337]
[1644597342184,4.742,105.48,105.37,52.90213337]
[1644597343483,4.742,105.49,105.37,52.90213337]
[1644597343711,0.25,105.49,105.37,55.53580128]
[1644597343910,0.25,105.49,105.39,35.69265395]
[1644597344110,1.30658196,105.5,105.39,47.06265395]
[1644597344309,0.25,105.5,105.39,47.06265395]
[1644597344509,1.55658196,105.5,105.39,47.06265395]
[1644597344709,6.04858196,105.51,105.39,47.31265395]
[1644597344908,114.30658196,105.52,105.39,47.31265395]
[1644597345108,114.30658196,105.52,105.41,47.71670812]
[1644597345316,114.30658196,105.52,105.42,11.37]
[1644597345509,4.74,105.51,105.43,45.61838038]
[1644597346811,114.30658196,105.52,105.43,45.61838038]
[1644597347213,114.55658196,105.52,105.43,45.61838038]
[1644597347915,4.74,105.51,105.43,45.61838038]
[1644597348315,114.55658196,105.52,105.43,45.61838038]
[1644597349213,116.94024987,105.52,105.43,45.61838038]
[1644597349414,4.74,105.51,105.43,45.61838038]
[1644597350813,113.0,105.52,105.43,45.61838038]
[1644597351514,113.25,105.52,105.43,45.61838038]
[1644597352015,4.74,105.51,105.43,45.61838038]
[1644597352816,113.0,105.52,105.43,45.86838038]
[1644597353015,113.0,105.52,105.44,11.37]
[1644597353218,113.0,105.52,105.45,36.39000443]
[1644597355216,113.25,105.52,105.45,36.39000443]
[1644597358719,113.0,105.52,105.45,36.64000443]
[1644597358919,113.0,105.52,105.45,48.01000443]
[1644597360621,113.0,105.52,105.45,47.51000443]
[1644597360927,113.0,105.52,105.47,34.68431419]
[1644597361422,113.0,105.52,105.49,38.53518608]
[1644597361621,113.0,105.52,105.5,6.06439994]
[1644597362625,4.738,105.51,105.41,11.37]
[1644597362923,4.738,105.51,105.42,47.8471]
[1644597363125,7.12166791,105.51,105.4,14.3386]
[1644597363326,7.12166791,105.51,105.41,36.08255664]
[1644597363725,42.06745767,105.51,105.41,36.08255664]
[1644597364126,30.69745767,105.51,105.41,36.08255664]
[1644597364325,57.99150585,105.51,105.41,36.08255664]
[1644597364526,59.29808781,105.51,105.41,36.08255664]
[1644597364726,59.29808781,105.51,105.34,15.01454193]
[1644597364927,59.29808781,105.51,105.32,33.83864193]
[1644597364928,1.30658196,105.49,105.32,33.83864193]
[1644597365129,18.413,105.48,105.32,33.83864193]
[1644597365330,59.30308781,105.48,105.32,33.83864193]
[1644597365527,39.58350585,105.47,105.32,33.83864193]
[1644597365730,22.6741621,105.46,105.33,39.67855126]
[1644597365928,74.28113001,105.46,105.33,39.67855126]
[1644597366130,2.38366791,105.45,105.33,39.67855126]
[1644597366429,4.744,105.44,105.33,39.67855126]
[1644597366628,5.84727978,105.44,105.33,39.67855126]
[1644597366828,2.38366791,105.43,105.33,39.67855126]
[1644597367031,9.0041621,105.42,105.33,39.67855126]
[1644597367229,22.6741621,105.42,105.33,39.67855126]
[1644597367428,2.38366791,105.41,105.33,39.67855126]
[1644597367628,18.414,105.42,105.33,39.67855126]
[1644597367829,2.38366791,105.43,105.33,39.67855126]
[1644597368128,18.414,105.44,105.33,39.67855126]
[1644597368927,4.744,105.44,105.33,39.67855126]
[1644597369127,53.9673,105.46,105.34,7.12766791]
[1644597369329,49.2233,105.46,105.45,1.4699677]
[1644597369529,4.741,105.48,105.45,1.4699677]
[1644597369729,4.741,105.46,105.45,1.4699677]
[1644597369930,4.74,105.48,105.45,1.4699677]
[1644597370337,7.12366791,105.48,105.45,6.77e-05]
[1644597370531,29.57760448,105.48,105.45,6.77e-05]
[1644597370730,24.2748,105.47,105.45,6.77e-05]
[1644597370930,18.411,105.46,105.45,6.77e-05]
[1644597371233,0.02,105.43,105.31,18.411]
[1644597371432,0.02,105.43,105.32,35.02312373]
[1644597371831,2.38366791,105.42,105.32,35.02312373]
[1644597372031,4.745,105.41,105.32,35.02312373]
[1644597372330,2.38366791,105.4,105.32,35.02312373]
[1644597373134,1.88366791,105.4,105.32,35.02312373]
[1644597373332,7.12866791,105.42,105.32,35.02312373]
[1644597374535,8.56050892,105.42,105.32,35.02312373]
[1644597375035,31.01444549,105.42,105.32,35.02312373]
[1644597375236,31.01444549,105.42,105.28,13.67]